bitfinex/quotes_ETHUSD_20251122
["timestamp","ask_amount","ask_price","bid_price","bid_amount"]
[1763820780752,0.126,2736.7,2736.6,0.51414169]
[1763820781139,0.002,2736.7,2736.6,0.51414169]
[1763820781340,0.126,2736.7,2736.6,1.0287]
[1763820781765,0.002,2736.7,2736.6,0.5776]
[1763820782079,0.002,2736.7,2736.6,10.98797094]
[1763820782297,0.002,2736.7,2736.6,10.95142925]
[1763820783646,0.002,2736.7,2736.6,5.58986204]
[1763820784576,0.002,2736.7,2736.6,1.38459264]
[1763820784774,0.4644,2736.7,2736.3,0.1]
[1763820785182,0.4644,2736.7,2736.1,0.6388]
[1763820785476,0.4644,2736.7,2736.2,0.1]
[1763820785645,0.917,2736.7,2736.1,1.09469264]
[1763820785849,0.917,2736.7,2736.1,1.19469264]
[1763820786396,0.124,2736.6,2736.1,1.19469264]
[1763820786602,0.5767,2736.6,2736.1,0.001]
[1763820787105,0.002,2736.7,2736.5,0.4809]
[1763820787398,0.124,2736.6,2736.2,0.6687]
[1763820787568,0.124,2736.6,2736.2,0.7687]
[1763820787768,0.124,2736.6,2736.2,0.2935]
[1763820787963,0.002,2736.7,2736.2,0.2935]
[1763820788206,0.124,2736.6,2736.2,0.2935]
[1763820788390,0.124,2736.6,2736.2,0.7687]
[1763820789004,0.124,2736.6,2736.2,3.94816056]
[1763820789582,0.124,2736.6,2736.2,4.42336056]
[1763820790996,0.124,2736.6,2736.2,0.7687]
[1763820791198,0.124,2736.6,2736.1,0.001]
[1763820791589,0.4931,2736.5,2736.1,0.001]
[1763820791905,0.4299,2736.2,2736.1,0.001]
[1763820792074,0.9223,2736.2,2736.1,0.001]
[1763820792269,0.124,2736.4,2736.1,0.4819]
[1763820792473,0.124,2736.4,2736.1,0.5819]
[1763820794906,0.002,2736.7,2736.4,0.1]
[1763820795108,0.124,2736.6,2736.4,0.1]
[1763820796995,0.4951,2736.7,2736.4,0.1]
[1763820797208,0.124,2736.5,2736.4,0.1]
[1763820797506,0.002,2736.7,2736.6,0.4809]
[1763820797681,0.002,2736.7,2736.6,0.61744169]
[1763820797885,0.002,2736.7,2736.6,1.0561]
[1763820800223,0.002,2736.7,2736.6,5.65380373]
[1763820800425,0.002,2736.7,2736.6,5.61726204]
[1763820802290,0.002,2736.7,2736.6,1.05340096]
[1763820802510,0.4319,2736.7,2736.6,0.90699264]
[1763820802717,0.002,2736.7,2736.6,1.42443433]
[1763820802898,0.002,2736.7,2736.6,5.61726204]
[1763820803103,0.002,2736.7,2736.6,5.65380373]
[1763820803736,0.002,2736.7,2736.6,5.61726204]
[1763820805989,0.002,2736.7,2736.6,5.65380373]
[1763820807720,0.002,2736.7,2736.6,5.61726204]
[1763820807935,0.002,2736.7,2736.6,5.76366179]
[1763820808105,0.002,2736.7,2736.6,6.20570748]
[1763820810152,0.002,2736.7,2736.6,6.16916579]
[1763820811531,0.002,2736.7,2736.6,6.20570748]
[1763820813094,0.002,2737.1,2736.9,0.4809]
[1763820813299,0.002,2737.3,2737.2,0.505504]
[1763820813528,0.002,2737.3,2737.2,1.180504]
[1763820813727,0.002,2737.3,2737.2,1.83859244]
[1763820816443,0.002,2737.3,2737.2,7.12962591]
[1763820816595,0.002,2737.3,2737.2,7.09309223]
[1763820818525,0.002,2738.0,2737.9,1.00699264]
[1763820818726,0.002,2738.0,2737.9,6.89908419]
[1763820819041,0.6709,2738.9,2738.0,0.405504]
[1763820819242,0.4757,2738.7,2738.2,0.7793]
[1763820820207,0.4757,2738.7,2738.2,1.2473]
[1763820820654,0.1952,2738.9,2738.2,5.33832682]
[1763820820948,0.4757,2739.1,2738.2,5.80632682]
[1763820821231,0.4757,2739.1,2739.0,0.1]
[1763820821608,0.9263,2739.1,2739.0,0.1]
[1763820823635,0.002,2739.5,2739.2,0.1]
[1763820823956,0.4506,2739.3,2739.2,0.1]
[1763820824975,0.4506,2739.3,2739.2,4.65769357]
[1763820825268,0.002,2739.5,2739.2,8.7023945]
[1763820825450,0.4777,2739.5,2739.4,0.1]
[1763820825963,0.9283,2739.5,2739.4,0.1]
[1763820826177,0.4526,2739.5,2739.4,0.1]
[1763820826370,0.928,2739.5,2739.4,0.1]
[1763820827858,0.928,2739.5,2739.2,4.55767674]
[1763820828058,0.0048,2739.3,2739.2,4.55767674]
[1763820828461,0.4805,2739.3,2739.2,4.55767674]
[1763820828836,0.002,2739.5,2739.4,0.1]
[1763820829058,0.002,2739.5,2739.4,0.594]
[1763820829442,0.002,2739.5,2739.4,4.2444344]
[1763820829849,0.002,2739.5,2739.4,4.4396344]
[1763820830239,0.4464,2739.5,2739.4,0.2952]
[1763820830439,0.4464,2739.5,2739.4,3.7504344]
[1763820831356,0.002,2739.5,2739.4,4.2444344]
[1763820832837,0.002,2739.5,2739.4,9.29606986]
[1763820833935,0.002,2739.8,2739.4,10.5085665]
[1763820834135,0.4757,2740.4,2740.0,0.1]
[1763820834335,0.101,2740.8,2740.0,5.05163546]
[1763820834576,0.9221,2740.1,2740.0,5.05163546]
[1763820835345,0.9221,2740.1,2740.0,5.15163546]
[1763820836276,0.9221,2740.1,2739.8,0.1]
[1763820836449,0.0044,2740.0,2739.8,0.1]
[1763820836645,0.4777,2740.1,2739.7,0.90699264]
[1763820836646,0.002,2740.1,2739.7,0.94349298]
[1763820836857,0.4777,2740.1,2740.0,5.15163546]
[1763820837346,0.9221,2740.1,2740.0,5.15163546]
[1763820837876,0.4464,2740.1,2740.0,5.15163546]
[1763820838378,0.9218,2740.1,2740.0,5.15163546]
[1763820838546,0.9218,2740.1,2739.9,0.1]
[1763820838874,0.4754,2740.0,2739.9,0.1]
[1763820839083,0.4802,2740.0,2739.9,0.1]
[1763820839279,0.002,2740.1,2740.0,0.494]
[1763820839466,0.002,2740.1,2740.0,5.64563546]
[1763820840276,0.002,2740.1,2740.0,9.29527049]
[1763820841558,0.002,2740.1,2740.0,8.80127049]
[1763820841767,0.4464,2740.1,2740.0,8.80127049]
[1763820844088,0.9218,2740.1,2739.9,0.4802]
[1763820844302,0.0048,2740.0,2739.9,5.0368895]
[1763820844597,0.002,2740.3,2740.2,4.65636129]
[1763820844802,0.002,2740.3,2740.2,10.28849675]
[1763820844983,0.002,2740.6,2740.5,0.1]
[1763820845294,0.4464,2740.6,2740.5,0.1]
[1763820846577,0.4464,2740.6,2740.5,3.74896916]
[1763820847083,0.002,2740.6,2740.5,4.20936916]
[1763820847256,0.002,2740.6,2740.5,4.24585885]
[1763820847455,0.002,2740.6,2740.5,4.71695885]
[1763820847852,0.2592,2740.6,2740.4,3.64909576]
[1763820848084,0.4874,2740.5,2740.4,4.6560884]
[1763820849602,0.002,2740.6,2740.4,1.46739264]
[1763820849765,0.002,2740.6,2740.5,0.4604]
[1763820850765,0.002,2740.6,2740.5,4.10936916]
[1763820851588,0.4524,2740.6,2740.5,3.74896916]
[1763820852262,0.002,2740.6,2740.5,4.24585885]
[1763820852588,0.002,2740.6,2740.5,4.20936916]
[1763820852785,0.4743,2741.3,2740.5,12.82188981]
[1763820853088,0.124,2741.2,2741.1,0.1]
[1763820853599,1.0484,2741.2,2741.1,0.1]
[1763820854660,0.474,2741.5,2741.2,3.64803735]
[1763820854863,0.1952,2742.7,2741.3,0.90699264]
[1763820855094,0.1298,2742.3,2742.0,5.05163546]
[1763820855298,0.6041,2742.3,2741.6,5.05163546]
[1763820855556,0.6041,2742.3,2741.7,0.1]
[1763820855785,0.4743,2742.2,2741.7,0.1]
[1763820855956,0.4527,2741.8,2741.7,0.1]
[1763820856895,0.9267,2741.8,2741.7,0.1]
[1763820857425,0.4527,2741.8,2741.7,3.74737206]
[1763820857572,0.474,2742.2,2742.0,0.1]
[1763820857773,0.124,2742.1,2742.0,0.1]
[1763820858071,0.577,2742.1,2742.0,0.1]
[1763820858274,1.0508,2742.1,2742.0,0.1]
[1763820858513,0.124,2742.2,2742.0,0.1]
[1763820858674,0.124,2742.2,2742.0,0.4604]
[1763820858868,0.124,2742.2,2742.1,0.1]
[1763820859208,0.5638,2742.2,2742.1,0.1]
[1763820859504,0.9267,2742.2,2742.1,0.1]
[1763820859803,1.0507,2742.2,2742.1,0.1]
[1763820860161,0.0058,2742.3,2742.2,3.74670702]
[1763820860361,0.0058,2742.3,2742.2,4.67820702]
[1763820860605,0.0058,2742.3,2742.2,5.58519966]
[1763820861399,0.4932,2742.3,2742.2,0.90699264]
[1763820861602,0.0058,2742.3,2742.2,5.11409966]
[1763820862197,0.0058,2742.3,2742.2,5.58519966]
[1763820863008,0.0058,2742.3,2742.2,5.11409966]
[1763820863225,0.0058,2742.3,2742.2,5.58519966]
[1763820864698,0.60854234,2744.7,2742.2,5.58519966]
[1763820864699,0.4812,2743.5,2742.5,0.405504]
[1763820864966,0.4812,2743.5,2743.1,0.1]
[1763820865297,0.0069,2743.5,2743.3,0.1]
[1763820865599,0.0069,2743.5,2743.4,6.5190281]
[1763820866218,0.0069,2743.5,2743.4,6.9901281]
[1763820866745,0.0069,2743.5,2743.4,7.3956321]
[1763820867259,0.0069,2743.5,2743.4,11.040744]
[1763820867949,0.4743,2744.5,2743.5,0.405504]
[1763820868151,0.4743,2744.5,2744.3,0.1]
[1763820868349,0.4551,2744.4,2743.9,0.1]
[1763820868646,0.4551,2744.0,2743.9,0.1]
[1763820868862,0.4551,2744.0,2743.7,0.90699264]
[1763820869170,0.648,2743.8,2743.6,0.1]
[1763820869451,0.4551,2743.7,2743.6,0.1]
[1763820869651,0.9292,2743.7,2743.6,0.1]
[1763820869849,0.9292,2743.7,2743.5,0.1]
[1763820870011,0.4743,2743.6,2743.5,0.1]
[1763820870212,0.9294,2743.6,2743.5,0.1]
[1763820870458,0.44205118,2744.9,2743.1,0.2844]
[1763820870659,0.44205118,2744.9,2743.4,5.15163546]
[1763820870660,0.1929,2743.9,2743.4,5.15163546]
[1763820870956,0.1929,2743.9,2743.7,0.1]
[1763820871109,0.4743,2743.8,2743.7,0.1]
[1763820871311,0.9294,2743.8,2743.6,0.1]
[1763820871513,0.4743,2743.8,2743.6,0.1]
[1763820871713,0.9295,2743.7,2743.6,0.1]
[1763820872316,0.9295,2743.7,2743.4,5.05163546]
[1763820872317,0.9295,2743.7,2743.4,5.15163546]
[1763820872544,0.4551,2743.5,2743.2,0.1]
[1763820872881,0.4551,2743.3,2743.2,0.1]
[1763820873078,0.1929,2743.9,2743.2,0.1]
[1763820873279,0.4743,2743.8,2743.7,0.1]
[1763820873646,0.9294,2743.8,2743.7,0.1]
[1763820874378,0.4551,2743.8,2743.7,3.74471334]
[1763820874578,0.5983,2744.4,2743.7,4.57621334]
[1763820874882,0.5983,2744.4,2744.2,0.1]
[1763820875184,0.4743,2744.3,2744.2,0.1]
[1763820875398,0.4551,2744.3,2744.2,0.1]
[1763820875574,0.5981,2744.6,2744.3,0.1]
[1763820875784,0.1929,2746.0,2744.4,0.1]
[1763820875960,0.1929,2746.0,2744.7,0.1]
[1763820875961,0.6852,2745.2,2744.7,0.1]
[1763820876483,0.6852,2745.2,2744.5,0.1]
[1763820876484,0.4373,2744.8,2744.5,0.1]
[1763820876645,0.4917,2745.1,2744.5,0.1]
[1763820876851,0.4917,2745.1,2744.8,0.1]
[1763820877051,0.6157,2745.1,2744.8,0.1]
[1763820877267,0.4378,2744.9,2744.8,0.1]
[1763820877553,0.1929,2745.2,2744.8,0.1]
[1763820877854,0.4535,2744.9,2744.8,0.1]
[1763820878304,0.124,2745.1,2744.8,0.5687]
[1763820878450,0.124,2745.3,2745.0,5.15163546]
[1763820878653,0.124,2745.3,2743.7,7.50368528]
[1763820878654,0.654,2743.3,2742.1,0.192]
[1763820878885,0.1256,2743.2,2742.1,5.73313546]
[1763820879108,0.1256,2743.2,2742.3,5.05163546]
[1763820879109,0.4774,2743.2,2742.3,5.05163546]
[1763820879390,0.4774,2743.2,2742.7,5.05163546]
[1763820879879,0.6014,2743.2,2742.8,0.03645909]
[1763820880114,0.6014,2743.2,2742.7,5.05163546]
[1763820880315,0.4444,2742.8,2742.7,5.05163546]
[1763820880694,0.4444,2742.8,2742.3,8.69819153]
[1763820880896,0.405504,2744.0,2742.7,0.4687]
[1763820881099,0.405504,2744.0,2742.4,0.90699264]
[1763820881100,0.4758,2743.8,2743.1,5.05163546]
[1763820881306,0.124,2743.7,2743.1,5.05163546]
[1763820881683,0.4758,2743.6,2743.1,5.05163546]
[1763820882115,0.3511,2743.2,2742.8,0.90699264]
[1763820882386,0.3511,2743.2,2742.7,5.05163546]
[1763820882800,0.3511,2743.2,2742.7,8.69765446]
[1763820883195,0.3511,2743.2,2742.7,5.05163546]
[1763820883528,0.57184188,2744.4,2742.7,6.09524901]
[1763820883711,0.4758,2743.6,2742.8,0.4895]
[1763820884619,0.4758,2743.6,2742.7,5.60574901]
[1763820884817,0.4758,2743.6,2742.7,5.05163546]
[1763820886218,2.78085478,2745.1,2743.2,5.05163546]
[1763820886417,0.1882,2743.9,2743.2,5.05163546]
[1763820886610,0.4758,2743.8,2743.2,5.05163546]
[1763820886813,0.2812,2743.3,2742.8,5.24363546]
[1763820887011,0.2812,2743.3,2742.6,0.90699264]
[1763820887012,0.4052,2743.3,2742.6,0.90699264]
[1763820887185,0.8791,2743.3,2742.6,0.90699264]
[1763820887385,0.4052,2743.3,2742.7,0.03646042]
[1763820887720,0.4052,2743.3,2742.6,0.4895]
[1763820887908,0.8791,2743.3,2742.5,4.55329564]
[1763820888092,0.4739,2743.2,2742.5,4.55329985]
[1763820888490,0.2831,2742.6,2741.9,5.05163546]
[1763820888710,0.2831,2742.6,2742.0,0.4895]
[1763820888898,0.1882,2743.1,2742.3,5.05163546]
[1763820889100,0.5998,2743.0,2742.3,5.05163546]
[1763820889307,0.4758,2742.9,2742.4,0.03646441]
[1763820889498,0.4758,2742.9,2742.4,3.68288367]
[1763820889698,0.124,2743.0,2742.7,5.05163546]
[1763820890115,0.5998,2743.0,2742.4,3.64641926]
[1763820890921,0.4758,2742.9,2742.4,3.64641926]
[1763820891289,0.78374198,2743.4,2742.8,0.4687]
[1763820891590,0.5998,2743.7,2742.9,0.50515776]
[1763820891898,1.38354198,2743.7,2742.8,5.05163546]
[1763820892102,0.4758,2743.6,2742.5,3.64623713]
[1763820892296,1.25966546,2743.6,2742.5,3.64623713]
[1763820892522,0.78386546,2743.5,2742.5,3.64623713]
[1763820892722,0.78386546,2743.4,2742.5,3.64623713]
[1763820893024,1.25966546,2743.4,2742.5,3.64623713]
[1763820893188,0.4758,2743.3,2742.5,3.64623713]
[1763820893689,0.2812,2742.6,2742.2,3.64665213]
[1763820893893,0.124,2742.9,2742.2,0.90699264]
[1763820894143,0.4758,2743.6,2742.8,5.05163546]
[1763820894323,0.124,2743.5,2742.9,0.03645776]
[1763820894646,0.1882,2743.9,2743.2,5.05163546]
[1763820894812,0.1882,2743.9,2743.3,0.03645244]
[1763820895153,0.124,2743.8,2743.1,5.33258037]
[1763820895553,0.124,2743.8,2743.2,7.78025532]
[1763820895943,0.3122,2743.9,2743.2,7.78025532]
[1763820896264,0.3122,2743.9,2743.3,0.03645244]
[1763820896614,0.124,2744.5,2743.8,0.4687]
[1763820897115,0.4694,2743.9,2743.3,0.90699264]
[1763820897535,0.4694,2743.9,2743.4,3.6451119]
[1763820897722,0.9433,2743.9,2743.3,4.55222482]
[1763820898047,0.124,2743.8,2742.9,0.90699264]
[1763820898249,0.5979,2743.8,2742.9,0.90699264]
[1763820898423,0.5979,2743.8,2743.0,0.03645643]
[1763820898628,0.124,2743.7,2743.0,0.52595643]
[1763820898847,0.124,2743.7,2743.0,0.4895]
[1763820899039,0.4759,2743.8,2743.0,0.52595643]
[1763820899263,0.002,2743.8,2743.2,5.33258037]
[1763820899549,0.002,2743.8,2743.4,7.2902238]
[1763820899750,0.002,2743.8,2743.7,0.4687]
[1763820900153,0.002,2743.8,2743.7,0.9582]
[1763820900555,0.002,2743.8,2743.7,1.86519264]
[1763820900940,0.002,2743.8,2743.7,1.90163977]
[1763820901147,0.002,2743.8,2743.7,1.86519264]
[1763820901460,0.1882,2745.1,2743.8,0.405504]
[1763820901615,0.002,2745.2,2744.3,5.33258037]
[1763820901816,0.002,2745.2,2743.9,15.06729072]
[1763820901817,0.002,2745.2,2745.1,0.6588]
[1763820902161,0.7617,2745.2,2744.4,0.4895]
[1763820902318,0.0047,2745.0,2744.4,0.50201534]
[1763820902514,0.0047,2745.0,2744.2,5.33258037]
[1763820902515,0.1882,2744.9,2744.2,5.33258037]
[1763820902859,0.002,2745.2,2744.2,5.82208037]
[1763820902860,0.1882,2745.1,2744.2,5.82208037]
[1763820903027,0.664,2745.1,2744.2,5.82208037]
[1763820903368,0.1882,2745.1,2744.6,5.33258037]
[1763820903532,0.002,2745.2,2744.8,7.28650538]
[1763820903719,0.002,2745.2,2744.8,7.78852072]
[1763820903922,0.002,2745.2,2745.1,0.4687]
[1763820904450,0.002,2745.2,2745.1,0.9582]
[1763820905739,0.002,2745.2,2745.1,4.11155454]
[1763820906050,0.002,2745.2,2745.1,4.59225454]
[1763820906214,0.002,2745.2,2745.1,5.31203184]
[1763820906632,0.002,2745.2,2744.7,0.4807]
[1763820906831,0.002,2745.2,2744.8,7.28650538]
[1763820907072,0.002,2745.2,2745.1,0.4724]
[1763820907630,0.002,2745.2,2745.1,4.11525454]
[1763820907880,0.002,2745.2,2745.1,3.64285454]
[1763820908078,0.002,2745.2,2744.9,0.90699264]
[1763820908245,0.002,2745.2,2745.1,0.4724]
[1763820908769,0.002,2745.2,2745.1,6.38568037]
[1763820908970,0.002,2745.2,2745.1,6.28568037]
[1763820909266,0.002,2745.2,2745.1,1.0531]
[1763820909646,0.002,2745.2,2745.1,4.69595454]
[1763820909846,0.002,2745.2,2745.1,0.90699264]
[1763820910070,0.3073,2745.2,2744.6,3.64349689]
[1763820910236,0.3073,2745.2,2744.8,0.1]
[1763820910433,0.3073,2745.2,2744.9,0.1]
[1763820910682,0.3073,2745.2,2745.1,0.1]
[1763820910845,0.4567,2745.1,2744.7,0.1]
[1763820911154,0.1862,2744.8,2744.7,0.1]
[1763820911339,0.4949,2744.8,2744.7,0.1]
[1763820911669,0.9501,2744.8,2744.0,0.1901]
[1763820911880,0.5414,2744.8,2743.8,0.1]
[1763820912085,0.4582,2744.7,2743.8,0.1]
[1763820912285,0.1185,2744.9,2743.8,5.33258037]
[1763820912465,0.1185,2744.9,2744.3,0.1]
[1763820912779,0.1862,2745.1,2744.7,0.1]
[1763820913151,0.6444,2745.1,2744.7,0.1]
[1763820913351,0.2083,2744.8,2744.7,0.1]
[1763820913669,0.2083,2744.8,2744.3,0.1]
[1763820913878,0.4557,2744.7,2744.3,0.1]
[1763820914037,0.4557,2744.7,2744.1,0.2975]
[1763820914373,0.4557,2744.7,2744.4,0.1]
[1763820914682,0.6444,2745.1,2744.4,0.1]
[1763820914967,0.1862,2745.1,2744.6,5.33258037]
[1763820915185,0.1862,2745.1,2744.9,0.1]
[1763820915539,0.6444,2745.1,2744.9,0.1]
[1763820915767,0.2083,2745.0,2744.9,0.1]
[1763820916557,0.664,2745.0,2744.6,0.1]
[1763820916757,0.664,2745.0,2744.4,0.1]
[1763820916962,0.4557,2744.9,2744.4,0.1]
[1763820917345,0.4557,2744.9,2744.4,0.7885346]
[1763820917551,0.002,2745.2,2745.0,0.1]
[1763820917761,0.002,2745.2,2744.8,0.4724]
[1763820917938,0.002,2745.2,2745.1,0.1]
[1763820918794,0.002,2745.2,2745.1,1.08952854]
[1763820919087,0.002,2745.2,2745.1,1.10565804]
[1763820919245,0.002,2745.2,2745.1,0.63325804]
[1763820919954,0.002,2745.2,2744.8,0.4807]
[1763820919955,0.2772,2745.2,2744.8,0.1]
[1763820920154,0.002,2745.2,2745.1,0.1]
[1763820920355,0.002,2745.2,2745.1,0.4724]
[1763820920683,0.002,2745.2,2745.1,1.0531]
[1763820921565,0.002,2745.2,2745.1,0.5724]
[1763820921778,0.002,2745.2,2745.1,0.1]
[1763820922081,0.002,2745.2,2745.1,3.74285454]
[1763820922386,0.7356,2745.2,2744.4,8.19456004]
[1763820922552,0.4582,2745.1,2744.7,0.1]
[1763820922748,0.002,2745.2,2745.1,0.1]
[1763820923173,0.002,2745.2,2745.1,0.5724]
[1763820923375,0.2772,2745.2,2745.1,0.1]
[1763820923576,0.2772,2745.2,2745.0,0.1]
[1763820923951,0.4582,2745.1,2744.7,0.1]
[1763820924583,0.002,2745.2,2744.6,0.1]
[1763820924908,0.002,2745.2,2744.9,0.1]
[1763820925385,0.002,2745.2,2745.1,0.1]
[1763820925954,0.002,2745.2,2745.1,3.74285454]
[1763820926150,0.002,2745.2,2745.1,4.69595454]
[1763820926349,0.002,2745.2,2745.1,5.17901719]
[1763820927785,0.002,2745.2,2745.1,4.69831719]
[1763820927984,0.002,2745.2,2745.1,4.69595454]
[1763820929091,0.002,2745.2,2745.1,3.64285454]
[1763820929295,0.4799,2745.2,2744.8,0.1]
[1763820929457,0.2577,2745.2,2744.8,0.1]
[1763820929657,0.002,2745.2,2745.0,0.1]
[1763820929857,0.4602,2745.2,2745.0,0.1]
[1763820930179,0.2752,2745.1,2744.7,3.64333318]
[1763820930349,0.4602,2745.2,2744.6,0.1]
[1763820930350,0.1862,2744.8,2744.6,0.1]
[1763820930698,0.002,2745.2,2745.0,0.1]
[1763820930699,0.1862,2745.1,2745.0,0.1]
[1763820931107,0.4602,2745.2,2744.6,5.70694355]
[1763820931108,0.002,2745.2,2744.6,5.70694355]
[1763820931267,0.002,2745.2,2745.1,0.1]
[1763820932673,0.002,2745.2,2745.1,3.74285454]
[1763820933184,0.002,2745.2,2745.1,13.92396345]
[1763820933497,0.002,2745.2,2745.1,15.64195701]
[1763820936694,0.496,2746.3,2746.2,0.1]
[1763820936905,0.664,2746.3,2746.2,0.1]
[1763820938254,0.664,2746.3,2745.6,5.33258037]
[1763820938255,0.78453422,2746.9,2746.1,0.1797]
[1763820938493,0.4891,2746.8,2746.2,0.1]
[1763820938665,0.4891,2746.8,2745.9,3.64174822]
[1763820938666,0.2544,2746.0,2745.9,3.74179321]
[1763820938867,0.2544,2746.0,2745.9,0.37417932]
[1763820939068,0.7411,2746.0,2745.8,0.1]
[1763820939284,0.4457,2745.9,2745.8,0.1]
[1763820939471,0.4457,2745.9,2745.8,3.74192585]
[1763820940061,0.4457,2745.9,2745.8,0.1]
[1763820940632,0.124,2746.4,2745.8,11.99794176]
[1763820940834,0.4891,2746.8,2746.2,5.33258037]
[1763820941132,0.196,2745.9,2745.6,0.1]
[1763820941537,0.196,2745.9,2745.8,0.1]
[1763820941742,0.4891,2746.5,2745.9,0.1]
[1763820941942,0.124,2746.7,2746.2,0.1]
[1763820942105,0.4891,2746.6,2746.4,0.1]
[1763820942315,0.1079,2746.9,2746.5,7.28199526]
[1763820942642,0.4891,2747.1,2746.7,0.1]
[1763820942940,0.124,2747.3,2747.0,0.1]
[1763820943306,0.1102,2747.1,2747.0,0.1]
[1763820943502,0.78385129,2747.9,2747.1,0.1909]
[1763820943806,0.4891,2747.8,2747.4,0.1]
[1763820944036,0.1029,2747.5,2747.0,0.1]
[1763820944347,0.124,2747.7,2747.4,0.1]
[1763820944548,0.6131,2747.8,2747.4,0.1]
[1763820944747,0.4891,2747.8,2747.0,5.33258037]
[1763820944914,0.196,2748.1,2747.7,0.1]
[1763820945107,0.3102,2748.0,2747.8,0.1]
[1763820945355,0.196,2748.1,2747.8,0.1]
[1763820945646,0.196,2748.1,2748.0,0.1]
[1763820945846,0.32,2748.6,2748.0,0.1]
[1763820946020,0.196,2748.6,2748.3,0.1]
[1763820946224,0.7815462,2750.1,2748.8,0.1]
[1763820946412,0.7815462,2750.1,2748.0,0.54325804]
[1763820946413,0.2564,2748.9,2748.3,0.1]
[1763820946613,0.2564,2748.9,2748.1,7.46865554]
[1763820946814,0.196,2749.2,2748.4,5.33258037]
[1763820947043,0.70888001,2750.0,2748.8,5.33258037]
[1763820947246,0.70888001,2750.0,2748.5,0.4838]
[1763820947247,0.21978001,2750.0,2748.4,0.90699264]
[1763820947459,0.21978001,2750.0,2747.8,3.859]
[1763820947460,0.2545,2748.5,2747.5,0.1]
[1763820947613,0.126,2748.4,2747.8,0.1]
[1763820947946,0.6795,2748.3,2747.8,0.1]
[1763820948113,0.126,2748.2,2748.1,0.1]
[1763820948313,0.77838053,2749.5,2748.0,3.63900586]
[1763820948515,0.4891,2748.9,2748.6,0.1]
[1763820948759,0.1904,2749.9,2748.3,0.1]
[1763820948959,0.126,2749.8,2749.2,0.1]
[1763820949375,0.4644,2749.3,2749.2,0.1]
[1763820949578,0.1904,2749.9,2749.1,0.1909]
[1763820949726,0.126,2749.5,2749.4,0.1]
[1763820950057,0.1904,2749.9,2749.6,0.1]
[1763820950274,0.3164,2749.9,2749.8,0.1]
[1763820950439,0.77677536,2751.2,2749.8,0.4884]
[1763820950637,0.1904,2751.3,2749.8,0.4884]
[1763820950638,0.6851,2750.7,2749.9,1.00091604]
[1763820950978,0.6851,2750.7,2749.9,0.1]
[1763820950979,0.4891,2750.6,2749.9,0.1]
[1763820951137,0.1904,2749.9,2749.6,0.1]
[1763820951339,0.4644,2749.7,2749.3,0.1]
[1763820951664,0.1904,2749.9,2749.3,5.33258037]
[1763820951665,0.3164,2749.9,2749.3,5.33258037]
[1763820952177,0.21978001,2750.0,2749.0,0.90699264]
[1763820952340,0.21978001,2750.0,2749.9,0.1]
[1763820952539,0.21978001,2750.0,2749.3,5.33258037]
[1763820952736,0.1904,2749.9,2749.7,0.1]
[1763820953062,0.21978001,2750.0,2749.7,0.1]
[1763820953262,0.21978001,2750.0,2749.9,0.1]
[1763820954054,0.21978001,2750.0,2749.9,1.61545804]
[1763820954450,0.21978001,2750.0,2749.9,5.25195391]
[1763820954838,0.196,2750.9,2750.0,0.90699264]
[1763820955171,0.196,2750.9,2750.5,5.11113324]
[1763820955398,0.4891,2750.8,2749.9,0.1]
[1763820955605,0.3891,2750.8,2750.0,5.01113324]
[1763820955783,0.126,2750.7,2750.2,0.1]
[1763820955989,0.126,2750.7,2750.0,5.01113324]
[1763820955990,0.126,2750.7,2750.0,5.11113324]
[1763820956353,0.196,2750.9,2749.9,5.01113324]
[1763820956566,0.08,2750.8,2750.2,0.1]
[1763820956793,0.08,2750.8,2750.5,0.1]
[1763820957005,0.4455,2750.6,2750.0,0.1]
[1763820957597,0.45,2750.6,2750.0,0.1]
[1763820957798,0.126,2750.5,2750.3,0.1]
[1763820958509,0.4411,2750.4,2750.3,0.1]
[1763820958688,0.4411,2750.4,2750.2,0.1]
[1763820959406,0.5851,2750.9,2750.3,0.1]
[1763820959706,0.222,2750.9,2750.5,0.1]
[1763820959907,0.222,2750.9,2750.6,5.01113324]
[1763820960071,0.6795,2751.3,2750.6,5.01113324]
[1763820960273,0.126,2751.2,2750.6,5.01113324]
[1763820960481,0.6795,2751.3,2750.6,5.01113324]
[1763820960663,0.1904,2751.3,2750.6,12.28227053]
[1763820960863,0.1904,2751.3,2750.6,12.76607053]
[1763820961307,0.126,2751.4,2750.7,3.859]
[1763820961508,0.1904,2751.5,2751.0,5.01113324]
[1763820961691,0.1904,2751.7,2751.0,5.01113324]
[1763820961877,0.1404,2752.0,2751.6,5.01113324]
[1763820962414,0.6151,2752.7,2751.9,5.01113324]
[1763820962713,0.126,2752.7,2751.9,9.13338621]
[1763820962951,0.4891,2753.0,2751.9,13.25103918]
[1763820963098,0.126,2752.7,2751.9,5.98333324]
[1763820963302,0.126,2752.7,2751.5,5.01113324]
[1763820963524,0.0603,2752.0,2751.5,5.01113324]
[1763820963833,0.1404,2751.6,2751.0,4.54202445]
[1763820964128,0.4891,2753.0,2751.4,0.405504]